bitfinex/quotes_BTCUSD_20250331
["timestamp","ask_amount","ask_price","bid_price","bid_amount"]
[1743457322787,0.0001684,82744.0,82743.0,1.61480364]
[1743457322994,0.241701,82747.0,82744.0,0.3782]
[1743457323195,0.241708,82745.0,82744.0,0.3782]
[1743457323405,0.241708,82745.0,82744.0,0.50080386]
[1743457323738,0.241708,82745.0,82744.0,0.90080386]
[1743457324523,0.241708,82745.0,82744.0,1.40080386]
[1743457330571,0.241708,82745.0,82744.0,2.02796386]
[1743457332280,0.241708,82745.0,82744.0,2.16348386]
[1743457334525,0.241708,82745.0,82744.0,2.02796386]
[1743457334698,0.253793,82745.0,82744.0,2.04084]
[1743457336333,0.253793,82745.0,82744.0,2.04766572]
[1743457338585,0.253793,82745.0,82744.0,1.96946572]
[1743457339439,0.253793,82745.0,82744.0,1.56946572]
[1743457341344,0.26573581,82745.0,82744.0,1.56946572]
[1743457342851,0.26573581,82745.0,82744.0,1.43398572]
[1743457343099,0.26573581,82745.0,82744.0,1.56946572]
[1743457343930,0.26573581,82745.0,82744.0,1.43398572]
[1743457344131,0.26573581,82745.0,82744.0,1.56946572]
[1743457347532,0.26573581,82745.0,82744.0,1.83398572]
[1743457347756,0.26573581,82745.0,82744.0,1.96946572]
[1743457348815,0.26573581,82745.0,82744.0,1.96980252]
[1743457349854,0.26573581,82745.0,82744.0,1.34264252]
[1743457355248,0.26573581,82745.0,82744.0,0.94264252]
[1743457360834,0.253793,82745.0,82744.0,0.94264252]
[1743457371406,0.241708,82745.0,82744.0,0.94264252]
[1743457373809,0.241708,82745.0,82744.0,1.06884252]
[1743457374011,0.241708,82745.0,82744.0,1.46884252]
[1743457375604,0.241708,82745.0,82744.0,1.06884252]
[1743457378643,0.241708,82745.0,82744.0,1.19144638]
[1743457380586,0.2418714,82746.0,82744.0,1.19144638]
[1743457380740,0.2418714,82746.0,82745.0,0.12260386]
[1743457380937,0.2418714,82746.0,82745.0,0.12942059]
[1743457381352,0.2418714,82746.0,82745.0,0.52942059]
[1743457381984,0.2458714,82746.0,82745.0,0.62942059]
[1743457382827,0.2508714,82746.0,82745.0,0.62942059]
[1743457384353,0.2458714,82746.0,82745.0,0.62942059]
[1743457384471,0.2508714,82746.0,82745.0,0.62942059]
[1743457397497,0.2508714,82746.0,82745.0,1.02942059]
[1743457404170,0.2508714,82746.0,82745.0,1.07942059]
[1743457405714,0.2508714,82746.0,82745.0,1.07714834]
[1743457406999,0.0091684,82746.0,82745.0,1.76708019]
[1743457407592,0.0091684,82746.0,82745.0,1.80467565]
[1743457408142,0.0091684,82746.0,82745.0,1.76741699]
[1743457408546,0.241671,82757.0,82752.0,0.075]
[1743457408825,0.24172843,82754.0,82753.0,0.12260386]
[1743457409088,4.643e-05,82754.0,82753.0,0.75382771]
[1743457409309,4.643e-05,82754.0,82753.0,1.21251171]
[1743457410303,4.643e-05,82754.0,82753.0,1.23628221]
[1743457410862,4.643e-05,82754.0,82753.0,1.73628221]
[1743457411331,0.00504643,82754.0,82753.0,1.73628221]
[1743457419939,0.00504643,82754.0,82753.0,1.73661901]
[1743457420095,0.00521483,82754.0,82753.0,1.73661901]
[1743457422844,0.00521483,82754.0,82753.0,2.36365901]
[1743457430969,0.00521483,82754.0,82753.0,2.53648288]
[1743457431905,0.00021483,82754.0,82753.0,2.53648288]
[1743457432125,0.00121483,82754.0,82753.0,2.53648288]
[1743457434262,0.00121483,82754.0,82753.0,3.21225412]
[1743457437468,0.00121483,82754.0,82753.0,3.32023812]
[1743457439289,0.00121483,82754.0,82753.0,3.38273812]
[1743457440537,0.00121483,82754.0,82753.0,3.38269812]
[1743457440962,0.00121483,82754.0,82753.0,3.36815727]
[1743457441348,0.00121483,82754.0,82753.0,3.38269812]
[1743457442095,0.00121483,82754.0,82753.0,3.24737812]
[1743457442332,0.24289483,82754.0,82753.0,2.49497027]
[1743457442540,0.24289483,82754.0,82753.0,2.1435064]
[1743457442743,0.24289483,82754.0,82753.0,2.2788264]
[1743457442937,0.24289483,82754.0,82753.0,2.5788264]
[1743457443255,0.25497883,82754.0,82753.0,2.1603264]
[1743457443579,0.25497883,82754.0,82753.0,1.75796466]
[1743457443776,0.25397883,82754.0,82753.0,0.6083208]
[1743457443979,0.25997883,82754.0,82753.0,0.7436408]
[1743457444509,0.253775,82750.0,82749.0,0.4]
[1743457445010,0.253788,82746.0,82745.0,0.0003368]
[1743457445211,0.253788,82746.0,82745.0,0.00488128]
[1743457445789,0.333888,82746.0,82745.0,0.14020128]
[1743457446167,0.012086,82739.0,82738.0,0.0003368]
[1743457446366,0.29173101,82739.0,82738.0,0.0003368]
[1743457446567,0.288709,82739.0,82738.0,0.0003368]
[1743457447379,0.288709,82739.0,82738.0,0.6356568]
[1743457448196,0.288709,82739.0,82738.0,0.6416568]
[1743457448596,0.288709,82739.0,82738.0,0.6476568]
[1743457449692,0.288709,82739.0,82738.0,1.0476568]
[1743457450558,0.253809,82739.0,82738.0,1.0476568]
[1743457450761,0.253809,82739.0,82738.0,1.03227009]
[1743457450924,0.253809,82739.0,82738.0,0.89695009]
[1743457451117,0.253809,82739.0,82738.0,1.03231009]
[1743457451365,0.253809,82739.0,82738.0,0.63231009]
[1743457451887,0.253809,82739.0,82738.0,1.03231009]
[1743457454097,0.253809,82739.0,82738.0,0.89695009]
[1743457454241,0.253809,82739.0,82738.0,1.03231009]
[1743457454695,0.253815,82737.0,82736.0,2e-07]
[1743457454885,0.012086,82736.0,82723.0,0.62692]
[1743457455090,0.01510826,82736.0,82723.0,0.62692]
[1743457455505,0.253821,82735.0,82734.0,6e-07]
[1743457455656,0.253907,82707.0,82704.0,0.0003366]
[1743457456057,0.253907,82707.0,82706.0,0.6275368]
[1743457456379,0.253907,82707.0,82706.0,0.7628968]
[1743457456874,0.259907,82707.0,82706.0,0.7628968]
[1743457457108,0.265907,82707.0,82706.0,0.00047621]
[1743457457341,0.253923,82702.0,82701.0,2e-07]
[1743457457594,0.253923,82702.0,82628.0,1.210241]
[1743457457595,0.253993,82679.0,82670.0,0.0003368]
[1743457457835,0.253993,82679.0,82671.0,0.2256683]
[1743457458069,0.253993,82679.0,82678.0,0.62766552]
[1743457458524,0.253993,82679.0,82678.0,0.76302552]
[1743457459314,0.255993,82679.0,82678.0,0.76302552]
[1743457459529,0.562065,82702.0,82678.0,0.88562938]
[1743457459726,0.253989,82681.0,82679.0,0.12260386]
[1743457459929,0.241891,82682.0,82679.0,0.12260386]
[1743457460227,0.253968,82687.0,82679.0,0.12260386]
[1743457460421,0.253968,82687.0,82681.0,0.241892]
[1743457460749,0.001,82688.0,82687.0,0.253968]
[1743457460952,0.001,82688.0,82687.0,0.37657186]
[1743457461156,0.001,82688.0,82687.0,0.67657186]
[1743457461479,0.001,82688.0,82687.0,0.69111271]
[1743457461761,0.001,82688.0,82687.0,0.70320912]
[1743457462095,0.001,82688.0,82687.0,1.10320912]
[1743457462297,0.006,82688.0,82687.0,1.10320912]
[1743457462510,0.005,82688.0,82687.0,1.60320912]
[1743457462913,0.01,82688.0,82687.0,1.60320912]
[1743457463137,0.01,82688.0,82687.0,1.59111271]
[1743457463677,0.015,82688.0,82687.0,1.59111271]
[1743457465478,0.015,82688.0,82687.0,1.60304896]
[1743457466535,0.015,82688.0,82687.0,1.60338596]
[1743457466937,0.015,82688.0,82687.0,1.73878596]
[1743457467397,0.015,82688.0,82687.0,1.59144971]
[1743457467633,0.015,82688.0,82687.0,1.72684971]
[1743457468643,0.015,82688.0,82687.0,1.59144971]
[1743457468797,0.015,82688.0,82687.0,1.72684971]
[1743457469208,0.015,82688.0,82687.0,1.59144971]
[1743457469471,0.015,82688.0,82687.0,1.71230886]
[1743457470255,0.015,82688.0,82687.0,1.72684971]
[1743457470609,0.015,82688.0,82687.0,1.71230886]
[1743457471015,0.015,82688.0,82687.0,1.70021586]
[1743457471215,0.015,82688.0,82687.0,1.71230886]
[1743457472200,0.015,82688.0,82687.0,1.72684971]
[1743457472919,0.015,82688.0,82687.0,1.71230886]
[1743457473326,0.015,82688.0,82687.0,0.500337]
[1743457473327,0.268966,82688.0,82687.0,0.500337]
[1743457473702,0.268966,82688.0,82687.0,0.635737]
[1743457474292,0.263966,82688.0,82687.0,0.500337]
[1743457474505,0.263966,82688.0,82687.0,0.635737]
[1743457474721,0.263966,82688.0,82687.0,0.135737]
[1743457474929,0.253966,82688.0,82687.0,0.135737]
[1743457475292,0.258966,82688.0,82687.0,0.135737]
[1743457475696,0.258966,82688.0,82678.0,0.62766552]
[1743457475697,0.253993,82679.0,82678.0,0.62766552]
[1743457475898,0.254,82677.0,82676.0,0.10773457]
[1743457477113,0.254,82677.0,82676.0,0.24317457]
[1743457477352,0.254011,82673.0,82672.0,0.26130747]
[1743457478582,0.254011,82673.0,82672.0,0.39674747]
[1743457479932,0.37861486,82673.0,82672.0,0.40174747]
[1743457480137,0.256011,82673.0,82672.0,0.14044]
[1743457480435,0.255011,82673.0,82672.0,0.14044]
[1743457480634,0.254011,82673.0,82672.0,0.13544]
[1743457480781,0.255011,82673.0,82672.0,0.13544]
[1743457481533,0.001,82673.0,82672.0,0.13544]
[1743457481943,0.243916,82673.0,82672.0,0.14044]
[1743457482240,0.241916,82673.0,82672.0,0.13544]
[1743457482461,0.242916,82673.0,82672.0,0.13544]
[1743457482686,0.243916,82673.0,82672.0,0.14044]
[1743457482866,0.256011,82673.0,82672.0,0.14044]
[1743457486679,0.002,82673.0,82672.0,0.26304386]
[1743457486994,0.002,82673.0,82672.0,0.67513886]
[1743457487354,0.002,82673.0,82672.0,0.91705786]
[1743457487556,0.002,82673.0,82672.0,1.41705786]
[1743457487720,0.002,82673.0,82672.0,1.71705786]
[1743457487924,0.002,82673.0,82672.0,1.79895786]
[1743457488299,0.000464,82679.0,82678.0,0.553997]
[1743457488502,0.000464,82679.0,82678.0,0.67660086]
[1743457488720,0.000464,82679.0,82678.0,0.42260386]
[1743457488926,0.000464,82679.0,82678.0,0.92260386]
[1743457489133,0.000464,82679.0,82678.0,1.17660086]
[1743457489754,0.005464,82679.0,82678.0,1.17660086]
[1743457490150,0.010464,82679.0,82678.0,1.17660086]
[1743457490759,0.010464,82679.0,82678.0,1.57660086]
[1743457490961,0.0106325,82679.0,82678.0,1.65190086]
[1743457492449,0.0106325,82679.0,82678.0,1.66644171]
[1743457494305,0.0056325,82679.0,82678.0,1.66644171]
[1743457494510,0.00057644,82679.0,82678.0,1.66644171]
[1743457494763,0.00547411,82679.0,82678.0,1.66744171]
[1743457494965,0.01047411,82679.0,82678.0,1.66744171]
[1743457495167,0.00547411,82679.0,82678.0,1.66644171]
[1743457495360,0.00541817,82679.0,82678.0,1.66644171]
[1743457495558,0.01536721,82679.0,82678.0,1.66744171]
[1743457498031,0.01536721,82679.0,82678.0,1.71404171]
[1743457500441,0.0001685,82707.0,82700.0,0.253928]
[1743457500620,0.0001685,82707.0,82700.0,1.57737271]
[1743457500961,0.0001685,82707.0,82700.0,1.97737271]
[1743457501393,0.0001685,82707.0,82700.0,2.48977566]
[1743457501805,0.0051685,82701.0,82700.0,2.07446386]
[1743457502012,0.2520035,82701.0,82700.0,1.38660386]
[1743457502426,0.2520035,82701.0,82700.0,1.40904927]
[1743457502828,0.0101685,82701.0,82700.0,1.40904927]
[1743457503247,0.2520035,82701.0,82700.0,1.40904927]
[1743457505841,0.241833,82702.0,82700.0,1.40904927]
[1743457506036,0.241835,82701.0,82700.0,1.28644541]
[1743457506250,0.241835,82701.0,82700.0,1.38660386]
[1743457506465,0.23133973,82702.0,82700.0,1.38660386]
[1743457506678,0.241831,82703.0,82701.0,0.52260386]
[1743457506894,0.0001685,82707.0,82701.0,0.52260386]
[1743457507096,0.241829,82703.0,82701.0,0.52260386]
[1743457508016,0.003,82702.0,82701.0,0.52260386]
[1743457508224,0.241832,82702.0,82701.0,0.52260386]
[1743457509435,0.244832,82702.0,82701.0,0.52260386]
[1743457509695,0.244832,82702.0,82701.0,1.02260386]
[1743457510737,0.244832,82702.0,82701.0,0.5]
[1743457510943,0.256923,82702.0,82701.0,0.6354]
[1743457511569,0.244832,82702.0,82701.0,0.6354]
[1743457511976,0.256923,82702.0,82701.0,0.6354]
[1743457514061,0.256923,82702.0,82701.0,0.5]
[1743457514242,0.256923,82702.0,82701.0,0.6354]
[1743457514609,0.256923,82702.0,82701.0,0.5]
[1743457514903,0.256923,82702.0,82701.0,0.6354]
[1743457515080,0.253923,82702.0,82701.0,0.6354]
[1743457515671,0.3315915,82702.0,82701.0,0.6354]
[1743457516210,0.253954,82692.0,82691.0,0.62752]
[1743457516417,0.25399,82680.0,82679.0,0.27065441]
[1743457516649,0.25399,82680.0,82679.0,0.40605441]
[1743457518251,0.25899,82680.0,82679.0,0.40605441]
[1743457518786,0.26099,82680.0,82679.0,0.40605441]
[1743457519285,0.26099,82680.0,82679.0,0.27065441]
[1743457519635,0.26099,82680.0,82679.0,0.40609441]
[1743457526895,0.007,82680.0,82679.0,0.40609441]
[1743457527097,0.248896,82680.0,82679.0,0.40609441]
[1743457527663,0.26099,82680.0,82679.0,0.40609441]
[1743457527856,0.22648351,82681.0,82679.0,0.40609441]
[1743457528159,0.24160164,82681.0,82680.0,0.13544]
[1743457529066,0.24660164,82681.0,82680.0,0.13544]
[1743457529206,0.24357751,82681.0,82680.0,0.13544]
[1743457529405,0.24357751,82681.0,82680.0,0.14144]
[1743457530269,0.23857751,82681.0,82680.0,0.14144]
[1743457530473,0.23857751,82681.0,82680.0,0.14744]
[1743457530669,0.24160162,82681.0,82680.0,0.012]
[1743457531086,0.36420548,82681.0,82680.0,0.012]
[1743457531243,0.36118137,82681.0,82680.0,0.012]
[1743457531769,0.25399,82680.0,82679.0,0.135777]
[1743457531971,0.37659386,82680.0,82679.0,0.135777]
[1743457533207,0.37659386,82680.0,82679.0,0.141777]
[1743457533412,0.37659386,82680.0,82679.0,0.006337]
[1743457533608,0.37659386,82680.0,82679.0,0.012337]
[1743457539661,0.37676236,82680.0,82679.0,0.012337]
[1743457540564,0.78666236,82680.0,82679.0,0.012337]
[1743457542392,0.6640585,82680.0,82679.0,0.012337]
[1743457548946,0.6640585,82680.0,82679.0,0.147777]
[1743457555605,0.6640585,82680.0,82679.0,0.012337]
[1743457555831,0.6640585,82680.0,82679.0,0.147777]
[1743457558014,0.6640585,82680.0,82679.0,0.222877]
[1743457559039,0.6640585,82680.0,82679.0,0.147777]
[1743457561695,0.78666236,82680.0,82679.0,0.012337]
[1743457561922,0.253993,82679.0,82678.0,4.644e-05]
[1743457562146,0.253993,82679.0,82670.0,0.0003368]
[1743457562147,0.254018,82671.0,82670.0,5.4e-07]
[1743457562374,0.254018,82671.0,82666.0,8e-07]
[1743457562375,0.25403,82667.0,82666.0,8e-07]
[1743457562573,0.37663386,82667.0,82666.0,0.0004648]
[1743457563552,0.18772417,82667.0,82666.0,8e-07]
[1743457563759,0.1907492,82667.0,82666.0,8e-07]
[1743457563882,0.2028452,82667.0,82666.0,8e-07]
[1743457564099,0.254043,82663.0,82661.0,0.13544]
[1743457564336,0.254043,82663.0,82662.0,0.00038327]
[1743457564528,0.37664686,82663.0,82662.0,0.00038327]
[1743457566065,0.37764686,82663.0,82662.0,0.00038327]
[1743457566872,0.78754686,82663.0,82662.0,2.7e-07]
[1743457567015,0.78854686,82663.0,82662.0,2.7e-07]
[1743457568445,0.78754686,82663.0,82662.0,2.7e-07]
[1743457568626,0.78654686,82663.0,82662.0,2.7e-07]
[1743457568831,0.78754686,82663.0,82662.0,2.7e-07]
[1743457569029,0.78854686,82663.0,82662.0,0.00500027]
[1743457569345,0.80308771,82663.0,82662.0,0.00500027]
[1743457569999,0.80308771,82663.0,82662.0,2.7e-07]
[1743457570603,1.10308771,82663.0,82662.0,2.7e-07]
[1743457570983,0.632664,82656.0,82655.0,7e-08]
[1743457571219,0.76980871,82656.0,82655.0,4.641e-05]
[1743457572390,0.76980871,82656.0,82655.0,4.1e-07]
[1743457572817,0.0121,82642.0,82641.0,0.13948]
[1743457573092,0.66400659,82642.0,82641.0,0.14687294]
[1743457573284,0.66400659,82642.0,82641.0,0.13948]
[1743457573707,0.6761349,82642.0,82641.0,0.13948]
[1743457574108,0.6771349,82642.0,82641.0,0.14248]
[1743457574903,0.6771349,82642.0,82641.0,0.1426484]
[1743457575661,0.6781349,82642.0,82641.0,0.1426484]
[1743457579360,0.6781349,82642.0,82641.0,0.0071684]
[1743457579704,0.42675126,82642.0,82641.0,0.0071684]
[1743457579898,0.43885126,82642.0,82641.0,0.0071684]
[1743457583595,0.97135512,82642.0,82641.0,0.0071684]
[1743457583980,0.97135512,82642.0,82641.0,4e-07]
[1743457585509,0.98589597,82642.0,82641.0,4e-07]
[1743457586656,1.06559597,82642.0,82641.0,4e-07]
[1743457586812,1.40582685,82642.0,82641.0,4e-07]
[1743457587851,1.40482685,82642.0,82641.0,4e-07]
[1743457588262,1.40582685,82642.0,82641.0,4e-07]
[1743457588703,1.40482685,82642.0,82641.0,4e-07]
[1743457589057,1.53232685,82642.0,82641.0,4e-07]
[1743457589202,1.53332685,82642.0,82641.0,0.0010004]
[1743457589412,1.40382685,82642.0,82641.0,4e-07]
[1743457589748,1.40582685,82642.0,82641.0,0.0010004]
[1743457590219,1.40582685,82642.0,82641.0,4e-07]
[1743457590436,1.40582685,82642.0,82618.0,0.0462]
[1743457590437,0.012102,82629.0,82628.0,0.13548]
[1743457590677,0.254163,82624.0,82623.0,4.3e-07]
[1743457590930,0.78666646,82624.0,82623.0,4.3e-07]
[1743457591346,0.80120731,82624.0,82623.0,4.3e-07]
[1743457592539,0.80220731,82624.0,82623.0,4.3e-07]
[1743457592737,0.82738841,82624.0,82623.0,4.3e-07]
[1743457592946,0.82638841,82624.0,82623.0,4.3e-07]
[1743457593349,0.82738841,82624.0,82623.0,4.3e-07]
[1743457593806,0.6539596,82624.0,82623.0,0.12870043]
[1743457593983,0.4118996,82624.0,82623.0,0.37076343]
[1743457594182,0.4118996,82624.0,82623.0,0.25880665]
[1743457594386,0.4118996,82624.0,82623.0,0.65880665]
[1743457594585,0.4118996,82624.0,82623.0,0.25880665]
[1743457594987,0.4118996,82624.0,82623.0,0.13620279]
[1743457595337,0.4118996,82624.0,82623.0,0.14752011]
[1743457595509,0.4108996,82624.0,82623.0,0.17015472]
[1743457595707,0.6519596,82624.0,82623.0,0.16265236]
[1743457595885,0.4118996,82624.0,82623.0,0.66665236]
[1743457596265,0.6539596,82624.0,82623.0,0.66665236]
[1743457596386,0.6539596,82624.0,82623.0,0.67415472]
[1743457596582,0.4118996,82624.0,82623.0,0.67415472]
[1743457596986,0.6539596,82624.0,82623.0,0.67415472]
[1743457599145,0.6539596,82624.0,82623.0,0.67432322]
[1743457600077,0.4118996,82624.0,82623.0,0.67432322]
[1743457600277,0.4118996,82624.0,82623.0,0.79692708]
[1743457603149,0.002,82624.0,82623.0,0.79692708]
[1743457604604,0.24406,82624.0,82623.0,0.79692708]
[1743457606151,0.24406,82624.0,82623.0,0.78942472]
[1743457606490,0.24406,82624.0,82623.0,0.79692708]
[1743457608158,0.24406,82624.0,82623.0,0.67432322]
[1743457608359,0.256163,82624.0,82623.0,0.80980322]
[1743457608559,0.256163,82624.0,82623.0,0.73040322]
[1743457608981,0.256163,82624.0,82623.0,0.18110322]
[1743457609741,0.256163,82624.0,82623.0,0.15846861]
[1743457610065,0.256163,82624.0,82623.0,0.14715129]
[1743457611347,0.2565,82624.0,82623.0,0.14715129]
[1743457612253,0.2565,82624.0,82623.0,0.01167129]
[1743457612476,0.55351984,82624.0,82623.0,2.9e-07]
[1743457612669,0.254196,82613.0,82612.0,0.01131732]
[1743457612873,0.254196,82613.0,82612.0,0.00011263]
[1743457613907,0.254196,82613.0,82612.0,0.00511263]
[1743457613908,0.255196,82613.0,82612.0,0.00511263]
[1743457614403,0.254196,82613.0,82612.0,0.00011263]
[1743457614743,0.255196,82613.0,82612.0,0.00511263]
[1743457615643,0.256196,82613.0,82612.0,0.00611263]
[1743457615843,0.37879986,82613.0,82612.0,0.00611263]
[1743457616810,0.47146608,82613.0,82612.0,0.00611263]
[1743457617353,0.012104,82612.0,82611.0,6.3e-07]
[1743457617556,0.1377348,82612.0,82611.0,6.3e-07]
[1743457617804,0.3798298,82612.0,82611.0,6.3e-07]
[1743457617972,0.37680286,82612.0,82611.0,6.3e-07]
[1743457618176,0.48400993,82612.0,82611.0,6.3e-07]
[1743457618601,0.4833283,82612.0,82611.0,6.3e-07]
[1743457618911,0.4843283,82612.0,82611.0,6.3e-07]
[1743457619420,0.4853283,82612.0,82611.0,6.3e-07]
[1743457619714,0.47078745,82612.0,82611.0,6.3e-07]
[1743457620897,0.34818359,82612.0,82611.0,6.3e-07]
[1743457621480,0.09466622,82612.0,82611.0,6.3e-07]
[1743457621666,0.35189185,82612.0,82611.0,0.0070793]
[1743457621871,0.34886522,82612.0,82611.0,6.3e-07]
[1743457622070,0.34886522,82612.0,82611.0,0.00471974]
[1743457622273,0.34886522,82612.0,82611.0,6.3e-07]
[1743457624265,0.47146908,82612.0,82611.0,6.3e-07]
[1743457624765,0.47146908,82612.0,82611.0,0.00016913]
[1743457624943,0.34886522,82612.0,82611.0,0.00016913]
[1743457625158,0.34886522,82612.0,82611.0,0.12546913]
[1743457625359,0.34886522,82612.0,82611.0,0.1325478]
[1743457625756,0.34886522,82612.0,82611.0,0.13001911]
[1743457625958,0.09466622,82612.0,82611.0,0.10596824]
[1743457627043,0.09466622,82612.0,82611.0,0.2285721]
[1743457627044,0.001,82612.0,82611.0,0.2285721]
[1743457627554,0.002,82612.0,82611.0,0.7285721]
[1743457627888,0.001,82612.0,82611.0,0.7285721]
[1743457628309,0.002,82612.0,82611.0,0.73293165]
[1743457629257,0.002,82612.0,82611.0,0.98713365]
[1743457629769,0.002,82612.0,82611.0,1.38713365]
[1743457630152,0.001,82612.0,82611.0,1.38713365]
[1743457630550,0.001,82612.0,82611.0,1.39313365]
[1743457630902,0.242046,82629.0,82618.0,0.242077]
[1743457631055,0.242059,82625.0,82617.0,0.36908]
[1743457631252,0.242055,82626.0,82619.0,0.00700569]
[1743457631496,0.242055,82626.0,82620.0,0.12260386]
[1743457631721,0.242055,82626.0,82620.0,0.12960042]
[1743457631873,0.242055,82626.0,82621.0,0.0773]
[1743457632198,0.242055,82626.0,82622.0,0.12958218]
[1743457632766,0.242058,82625.0,82623.0,0.5]
[1743457632983,0.242058,82625.0,82624.0,0.13564]
[1743457633197,0.242058,82625.0,82624.0,0.14260008]
[1743457633387,0.242055,82626.0,82624.0,0.14260008]
[1743457634218,0.24218713,82629.0,82624.0,0.14260008]
[1743457634395,0.242051,82627.0,82624.0,0.14860008]
[1743457634999,0.242057,82625.0,82624.0,0.14860008]
[1743457635199,0.242057,82625.0,82624.0,0.15460008]
[1743457635560,0.242054,82627.0,82624.0,0.14860008]
[1743457635754,0.242054,82627.0,82624.0,0.15460008]
[1743457636202,0.242054,82627.0,82624.0,0.14860008]
[1743457636404,0.242054,82627.0,82624.0,0.14260008]
[1743457636624,0.242054,82627.0,82624.0,0.14860008]
[1743457636768,0.000337,82626.0,82625.0,0.0788]
[1743457636974,0.000337,82626.0,82625.0,0.08575096]
[1743457637386,0.242391,82626.0,82625.0,0.08575096]
[1743457638225,0.242391,82626.0,82625.0,0.09175096]
[1743457639148,0.242391,82626.0,82625.0,0.09775096]
[1743457649513,0.242391,82626.0,82625.0,0.09791946]
[1743457655219,0.242391,82626.0,82625.0,0.59791946]
[1743457657147,0.242051,82627.0,82625.0,0.59791946]
[1743457657936,0.242051,82627.0,82625.0,0.59191946]
[1743457658141,0.242054,82626.0,82625.0,0.58591946]
[1743457658345,0.242054,82626.0,82625.0,0.59791946]
[1743457659057,0.242054,82626.0,82625.0,0.59191946]
[1743457659251,0.242054,82626.0,82625.0,0.59791946]
[1743457660085,0.242054,82626.0,82625.0,0.60391946]
[1743457660603,0.242391,82626.0,82625.0,0.60391946]
[1743457663739,0.242391,82626.0,82625.0,0.73939946]
[1743457666303,0.242391,82626.0,82625.0,1.13939946]
[1743457670882,0.242391,82626.0,82625.0,0.73939946]
[1743457678072,0.000337,82626.0,82625.0,0.73939946]
[1743457678813,0.242391,82626.0,82625.0,0.73939946]
[1743457685422,0.000337,82626.0,82625.0,0.73939946]
[1743457685715,0.24239,82628.0,82625.0,0.73939946]
[1743457685895,0.24239,82628.0,82625.0,0.66059946]
[1743457686094,0.242051,82627.0,82625.0,0.66059946]
[1743457686620,0.242051,82627.0,82625.0,0.65459946]
[1743457686831,0.242051,82627.0,82625.0,0.64859946]
[1743457687154,0.242051,82627.0,82625.0,0.65459946]
[1743457687309,0.242051,82627.0,82625.0,0.64859946]
[1743457687791,0.242051,82627.0,82625.0,0.65459946]
[1743457688969,0.24239,82628.0,82625.0,0.65459946]
[1743457689796,0.24239,82628.0,82625.0,0.64859946]
[1743457690267,0.24239,82628.0,82625.0,0.65459946]
[1743457690496,0.242052,82627.0,82625.0,0.65459946]
[1743457690871,0.000337,82628.0,82625.0,0.65459946]
[1743457690872,0.242385,82628.0,82625.0,0.65459946]
[1743457691387,0.242051,82627.0,82625.0,0.64859946]
[1743457691553,0.242385,82628.0,82625.0,0.64259946]
[1743457691753,0.242052,82627.0,82625.0,0.64259946]
[1743457691975,0.242051,82627.0,82625.0,0.64859946]
[1743457692742,0.242051,82627.0,82625.0,0.65459946]
[1743457694540,0.000337,82628.0,82625.0,0.65459946]
[1743457695844,0.000337,82628.0,82625.0,0.64859946]
[1743457696141,0.000337,82628.0,82625.0,0.65459946]
[1743457696502,0.000337,82628.0,82625.0,0.64859946]
[1743457696703,0.000337,82628.0,82625.0,0.65459946]
[1743457706181,0.254156,82626.0,82625.0,0.65459946]
[1743457706351,0.254156,82626.0,82625.0,0.51911946]
[1743457706556,0.254156,82626.0,82625.0,0.65455946]
[1743457706963,0.254156,82626.0,82625.0,0.64855946]
[1743457707161,0.254156,82626.0,82625.0,0.64255946]
[1743457707378,0.254156,82626.0,82625.0,0.64855946]
[1743457707689,0.254156,82626.0,82625.0,0.65455946]
[1743457716026,0.242054,82626.0,82625.0,0.65455946]
[1743457716734,0.242054,82626.0,82625.0,1.05455946]
[1743457721218,0.242054,82626.0,82625.0,0.65455946]
[1743457724381,0.242054,82626.0,82625.0,0.65224247]
[1743457726836,0.242054,82626.0,82625.0,0.66359604]
[1743457727679,0.242054,82626.0,82625.0,0.52815604]
[1743457727828,0.242054,82626.0,82625.0,0.66359604]
[1743457728458,0.242054,82626.0,82625.0,0.16359604]
[1743457729286,0.242054,82626.0,82625.0,0.15224247]
[1743457729681,0.242054,82626.0,82625.0,0.16359702]
[1743457734098,0.000337,82627.0,82625.0,0.16359702]
[1743457734099,0.242051,82627.0,82625.0,0.16359702]
[1743457734432,0.16654699,82628.0,82625.0,0.16359702]
[1743457735011,0.16654699,82628.0,82625.0,0.15759702]
[1743457735215,0.16654699,82628.0,82625.0,0.15159702]
[1743457735459,0.16654699,82628.0,82625.0,0.15759702]
[1743457735675,0.16654699,82628.0,82626.0,0.01135455]
[1743457735902,0.16654699,82628.0,82627.0,0.00462181]
[1743457736439,0.24218913,82629.0,82627.0,0.00462181]
[1743457736903,0.00013913,82629.0,82627.0,0.00462181]
[1743457737099,0.00013913,82629.0,82627.0,0.01597636]
[1743457737243,0.00013913,82629.0,82628.0,0.0457]
[1743457737645,0.00013913,82629.0,82628.0,0.05031573]
[1743457738866,0.00013913,82629.0,82628.0,0.05631573]
[1743457739490,0.00013913,82629.0,82628.0,0.06231573]
[1743457741428,0.00013913,82629.0,82628.0,0.56231573]
[1743457743771,0.00047573,82629.0,82628.0,0.56231573]
[1743457750228,0.00047573,82629.0,82628.0,0.80436373]
[1743457750549,0.00047573,82629.0,82628.0,0.56231573]
[1743457750848,0.00047573,82629.0,82628.0,0.57366647]
[1743457751062,0.00047573,82629.0,82628.0,0.81571447]
[1743457751558,0.23173377,82639.0,82628.0,0.81571447]
[1743457751764,0.01219101,82637.0,82629.0,0.242045]
[1743457751989,0.01219101,82637.0,82628.0,0.81571447]
[1743457751990,9.001e-05,82637.0,82631.0,0.25414]
[1743457752203,9.001e-05,82637.0,82633.0,0.0802]
[1743457752402,9.001e-05,82637.0,82636.0,0.254126]
[1743457752698,9.001e-05,82637.0,82636.0,0.2586931]
[1743457753882,9.001e-05,82637.0,82636.0,0.50889696]
[1743457754287,9.001e-05,82637.0,82636.0,1.01489696]
[1743457754656,9.001e-05,82637.0,82636.0,1.02623366]
[1743457755264,9.001e-05,82637.0,82636.0,1.03223366]
[1743457755466,0.012098,82657.0,82643.0,0.0121]
[1743457755660,0.2423078,82655.0,82645.0,0.241997]
[1743457755868,0.02402132,82647.0,82645.0,0.2465094]
[1743457756069,0.02402132,82647.0,82645.0,0.0045124]
[1743457756271,0.02402132,82647.0,82645.0,0.2465094]
[1743457756604,0.01190717,82654.0,82645.0,0.2465094]
[1743457756924,0.02481637,82648.0,82645.0,0.2465094]
[1743457757300,0.2423078,82655.0,82646.0,0.241995]
[1743457757822,0.0003368,82655.0,82650.0,0.254081]